Cogmind - Beta 16.1 @@@ ROGUE MODE // 2026.04.30 @ 12:58:49 Player: SunShine214 Result: Destroyed by S-10 Pest with Light Assault Rifle Performance ------------- Evolutions (0) 0 Regions Visited (2) 400 Robots Destroyed (28) 140 Value Destroyed (396) 396 Prototype IDs (0) 0 Alien Tech Used (0) 0 Bonus (0) 0 TOTAL SCORE: 936 Bonus ------- None Cogmind --------- Core Integrity 0/250 Matter 296/300 Energy 99/100 System Corruption 0% Temperature Cool (0) Movement Flying (40) Location -10/Subcaves Parts ------- > --- POWER (1) -------- (None) > --- PROPULSION (2) --- Flight Unit > --- UTILITY (2) ------ Sensor Array Propulsion Shielding > --- WEAPON (2) ------- Hammer > --- INVENTORY (5) ---- Light Treads Light Treads Large Storage Unit Subdweller Shrapnel Launcher Plasma Cutter Peak State ------------ > --- POWER ------------ Light Ion Engine > --- PROPULSION ------- Light Treads Light Treads > --- UTILITY ---------- Small Storage Unit Seismic Detector > --- WEAPON ----------- EM Pulse Gun Light Assault Rifle > --- INVENTORY -------- (None) [Rating: 7] Favorites ----------- Power Light Ion Engine Engine Light Ion Engine Propulsion Light Treads Treads Light Treads Flight Unit Flight Unit Utility Seismic Detector Device Seismic Detector Storage Small Storage Unit Protection Propulsion Shielding Weapon EM Pulse Gun Energy Gun EM Pulse Gun Ballistic Gun Light Assault Rifle Impact Weapon Hammer Build | -11 -10 -10 ------- Run | Yrd Mat Sub Slots Evolved . | . . . Power . | . . . Propulsion . | . . . Utility . | . . . Weapon . | . . . Parts Attached 14 | 7 3 4 Power 1 | 1 . . Engine 1 | 1 . . Core . | . . . Reactor . | . . . Propulsion 4 | 2 . 2 Treads 2 | 2 . . Leg . | . . . Wheel . | . . . Hover . | . . . Flight 2 | . . 2 Utility 6 | 2 2 2 Device 2 | 1 . 1 Storage 3 | 1 2 . Processor . | . . . Hackware . | . . . Protection 1 | . . 1 Artifact . | . . . Weapon 3 | 2 1 . Energy Gun 1 | 1 . . Energy Cannon . | . . . Ballistic Gun 1 | 1 . . Ballistic Cannon . | . . . Launcher . | . . . Special Weapon . | . . . Impact Weapon 1 | . 1 . Slashing Weapon . | . . . Piercing Weapon . | . . . Special Melee Weapon . | . . . Unidentified Prototypes . | . . . Parts Lost 3 | . 2 1 Power 1 | . 1 . Propulsion 1 | . . 1 Utility . | . . . Weapon 1 | . 1 . Highest Loss Streak 2 | . 2 1 To Critical Strikes . | . . . Average Backups 3 | . 3 5 Power . | . . . Propulsion . | . . 2 Utility 1 | . 1 1 Weapon . | . . . Tool/Special . | . . . Unused Backups 8 | . 1 7 Power . | . . . Propulsion 3 | . . 3 Utility 2 | . . 2 Weapon 2 | . 1 1 Tool/Special 1 | . . 1 Average Slot Usage (%) 95 | . 97 78 Engine 10 | . 11 . Treads 24 | . 28 . Flight 2 | . . 23 Device 14 | . 14 14 Storage 12 | . 14 . Protection 1 | . . 13 Energy Gun 10 | . 11 . Ballistic Gun 7 | . 6 11 Impact Weapon 10 | . 9 14 Peak Build Rating 7 | 7 7 7 Average Rating 6 | 6 6 5 On Entrance 4 | . 7 7 Avg Prop Armor Cover (%) . | . . . Naked Turns . | . . . Heaviest Build 28 | 12 28 5 Greatest Support 40 | 40 40 8 Greatest Overweight (x) . | . . . Average Overweight (x) . | . . . Largest Inventory Capacity 15 | 8 15 15 Average Capacity 8 | 7 9 5 Most Carried 10 | 1 10 10 Average Carried 3 | . 3 5 Final Capacity 15 | 8 15 5 Final Carried 10 | 1 10 5 Class Distribution -------------------- 100% | Mutant Dominant Class ---------------- Mutant | -10/Materials Mutant | -10/Subcaves Resources | -11 -10 -10 ----------- Run | Yrd Mat Sub Matter Collected 401 | 294 56 51 Remotely . | . . . Salvage Created 928 | 268 609 51 Parts 53 | 27 21 5 Haulers Intercepted 1 | . 1 . Recyclers Shooed 3 | 1 2 . Parts Field Recycled . | . . . Retrieved Matter . | . . . Parts Self-Destructed 9 | . . 9 Prevented . | . . . Parts Restored . | . . . Kills | -11 -10 -10 ------- Run | Yrd Mat Sub Combat Hostiles Destroyed 9 | . 7 2 Melee 3 | . 2 1 Guns 3 | . 3 . AOE 1 | . 1 . Classes Destroyed 9 | 3 5 1 Worker 2 | 2 . . Tunneler 7 | 7 . . Hauler 1 | . 1 . Recycler 4 | 1 3 . Operator 2 | . 2 . Watcher 3 | . 3 . Swarmer 4 | . 3 1 Grunt 4 | . 4 . Subdweller 1 | . . 1 Best Kill Streak 8 | 8 3 1 Combat Bots Only 2 | . 2 1 Max Kills in Single Turn 1 | 1 1 1 Gunslinging . | . . . Exploded 1 | . 1 . Melee 1 | . 1 1 Uniques/NPCs Destroyed . | . . . Combat | -11 -10 -10 -------- Run | Yrd Mat Sub Hostile Shots Fired 89 | . 66 23 Missed 28 | . 23 5 Hits 61 | . 43 18 Projectile 61 | . 43 18 Damage Taken 730 | . 440 290 Core 253 | . 95 158 Absorbed by Shields . | . . . Redirected to Shielding 18 | . . 18 Core Remaining (%) 100 | 100 . . Volleys Fired 49 | 24 25 . Largest 2 | 2 2 . Hottest 60 | 60 60 . Shots Fired 84 | 48 36 . Gun 84 | 48 36 . Cannon . | . . . Launcher . | . . . Special . | . . . Kinetic 40 | 24 16 . Thermal . | . . . Explosive . | . . . Electromagnetic 44 | 24 20 . Robot Hit Streak 9 | 9 6 . Robot Miss Streak 3 | 3 2 . Penetration Max . | . . . Secondary Targets . | . . . Shots Hit Robots 76 | 27 39 10 Core Hits 31 | 17 12 2 Critical Kills . | . . . Critical Parts Destroyed 4 | . 4 . Critical Strikes 4 | . 4 . Smash 4 | . 4 . Melee Attacks 64 | . 32 32 Impact 64 | . 32 32 Slashing . | . . . Piercing . | . . . Sneak Attacks 4 | . 4 . Combat Hostiles . | . . . Follow-up Attacks . | . . . Damage Inflicted 1435 | 331 836 268 Guns 568 | 294 274 . Cannons . | . . . Explosions 83 | 37 46 . Melee 778 | . 510 268 Ramming 6 | . 6 . Kinetic 186 | 109 77 . Thermal 83 | 37 46 . Explosive . | . . . Electromagnetic 382 | 185 197 . Impact 778 | . 510 268 Slashing . | . . . Piercing . | . . . Highest Corruption . | . . . Average Corruption . | . . . Corruption Purged . | . . . Corruption Blocked . | . . . Overload Shots . | . . . Overflow Damage 242 | . 225 17 Projectiles . | . . . Explosions . | . . . Melee 242 | . 225 17 Knockbacks 2 | . 2 . Impact 2 | . 2 . Kinetic . | . . . Secondary . | . . . Self-Inflicted Damage 55 | . 55 . Shots 1 | . 1 . Rammed 2 | . 2 . Targets Rammed 2 | . 2 . Kicked . | . . . Crushed . | . . . Highest Temperature 40 | 40 39 . Average Temperature 19 | 19 18 . Received Heat Transfer 78 | . 78 . Siege Activations . | . . . Martial Activations . | . . . Shielding Activations . | . . . Robots Disrupted . | . . . Combat Hostiles . | . . . Robots Corrupted 7 | . 6 1 Combat Hostiles 2 | . 1 1 Parts Fried 9 | . 8 1 Impact Corruptions 11 | . 10 1 Robots Melted . | . . . Combat Hostiles . | . . . Parts Melted . | . . . Heat Transferred 100 | 100 . . Parts Sabotaged . | . . . Parts Stolen . | . . . Parts Stripped . | . . . Power Chain Reactions 2 | 1 1 . Alert | -11 -10 -10 ------- Run | Yrd Mat Sub Maximum Alert Level . | . . . Low Security (%) 100 | 100 100 . Level 1 . | . . . Level 2 . | . . . Level 3 . | . . . Level 4 . | . . . Level 5 . | . . . High Security . | . . . Max Security . | . . . Peak Influence 129 | 15 129 . Initial . | . . . Average 23 | 2 25 . Influence Increases 398 | 50 328 20 Destroy 0b10 Robot/C 160 | . 140 20 Destroy 0b10 Robot/NC 95 | 50 45 . Destroy Leader 48 | . 48 . Successful Hack 23 | . 23 . Disable Machine 15 | . 15 . Destroy Structure 12 | . 12 . Lose Combat Pursuer 45 | . 45 . Influence Decreases 378 | 50 214 114 Entered New Map 55 | . . 55 Time Decay 303 | 50 194 59 Lost Part 20 | . 20 . Squads Dispatched 2 | . 2 . Investigation 1 | . 1 . Extermination . | . . . Reinforcement 1 | . 1 . Assault . | . . . Garrison . | . . . Intercept . | . . . Searches Triggered . | . . . Construction Impeded . | . . . Haulers Reinforced . | . . . Active Scanning Responses . | . . . Cargo Convoy Interrupts . | . . . Stealth | -11 -10 -10 --------- Run | Yrd Mat Sub Distress Signals 1 | . 1 . Communications Jammed . | . . . Distress Signals . | . . . Times Spotted 21 | . 18 3 Peak Tracking Total 3 | . 3 2 Tactical Retreats 2 | . 2 . Traps | -11 -10 -10 ------- Run | Yrd Mat Sub Traps Triggered 1 | . 1 . Indirectly . | . . . Trap Hack Attempts . | . . . Triggered . | . . . Disarmed . | . . . Reprogrammed . | . . . Reused . | . . . Traps Extracted . | . . . Installed . | . . . Triggered . | . . . Machines | -11 -10 -10 ---------- Run | Yrd Mat Sub Machines Disabled 1 | . 1 . Max in Single Turn 1 | . 1 . Machines Repaired . | . . . Machines Dismantled . | . . . Machines Sabotaged . | . . . Overloaded Fab Kills . | . . . Hacking | -11 -10 -10 --------- Run | Yrd Mat Sub Machines Accessed 7 | . 7 . Terminals 5 | . 5 . Fabricators . | . . . Repair Stations . | . . . Recycling Units 2 | . 2 . Scanalyzers . | . . . Garrison Access . | . . . Total Hacks 13 | . 13 . Successful 5 | . 5 . Failed 8 | . 8 . Catastrophic 4 | . 4 . Database Lockouts . | . . . Manual 7 | . 7 . Terminals 9 | . 9 . Fabricators . | . . . Repair Stations . | . . . Recycling Units 4 | . 4 . Scanalyzers . | . . . Garrison Access . | . . . Terminal Hacks 3 | . 3 . Level Access Points 1 | . 1 . Recall Investigation 1 | . 1 . Hauler Manifests 1 | . 1 . Fabricator Hacks . | . . . Repair Station Hacks . | . . . Recycling Unit Hacks 2 | . 2 . Retrieve Components 2 | . 2 . Scanalyzer . | . . . Garrison Access Hacks . | . . . Unauthorized Hacks . | . . . Terminals . | . . . Fabricators . | . . . Repair Stations . | . . . Recycling Units . | . . . Scanalyzers . | . . . Garrison Access . | . . . Data Cores Recovered 1 | . 1 . Used . | . . . Hacking Detections 6 | . 6 . Full Trace Events 2 | . 2 . Feedback Events . | . . . Feedback Blocked . | . . . Robot Schematics Acquired . | . . . Robots Built . | . . . Authchips . | . . . Time . | . . . Total Robot Build Rating . | . . . Part Schematics Acquired . | . . . Parts Built . | . . . Authchips . | . . . Time . | . . . Total Part Build Rating . | . . . Part Studies Acquired . | . . . Parts Repaired . | . . . Time . | . . . Parts Recycled . | . . . Recycled Matter . | . . . Retrieved Matter . | . . . Retrieved Components 10 | . 10 . Parts Scanalyzed . | . . . Part Schematics Acquired . | . . . Parts Damaged . | . . . Bothacking | -11 -10 -10 ------------ Run | Yrd Mat Sub Used RIF Installer . | . . . Robots Hacked . | . . . Non-combat . | . . . Combat . | . . . Robot Hacks Applied . | . . . Relay Couplers Released . | . . . Fabnet Peak Effective % . | . . . Robots Rewired . | . . . Allies Hacked . | . . . Hacks Repelled . | . . . Allies | -11 -10 -10 -------- Run | Yrd Mat Sub Total Allies . | . . . Largest Group . | . . . Highest-Rated Group . | . . . Highest-Rated Ally . | . . . Total Orders . | . . . Ally Attacks . | . . . Total Damage . | . . . Kills . | . . . Allies Corrupted . | . . . Allies Melted . | . . . Intel | -11 -10 -10 ------- Run | Yrd Mat Sub Active Infowar (turns) 3064 | 151 2564 349 Sensors 327 | . . 327 Seismic 2737 | 151 2564 22 Robot Analysis Total . | . . . Derelict Logs Recovered . | . . . Drone Launches . | . . . Drone Recoveries . | . . . Exploration | -11 -10 -10 ------------- Run | Yrd Mat Sub Turns Passed 3156 | 243 2564 349 Spaces Moved 1226 | 60 635 531 Core 1 | 1 . . Treads 694 | 59 635 . Legs . | . . . Wheels . | . . . Hover . | . . . Flight 531 | . . 531 Fastest Speed 37 | 50 160 37 Average Speed 106 | 158 160 37 Slowest Speed 160 | 160 160 40 Overloaded Moves . | . . . Propulsion Burnouts . | . . . Robots Hopped . | . . . Potential Cave-ins . | . . . Cave-ins Triggered . | . . . Exploration Rate (%) 40 | 4 92 26 Regions Visited 2 Branch Regions 1 Pre-discovered Areas . | . . . Known Exits Taken . | . . . Unknown Exits Taken 2 | 1 1 . Scrap Searched . | . . . Spaces Dug 11 | . 7 4 Terrain Destroyed 21 | 6 11 4 Melee 11 | . 7 4 Projectile . | . . . AOE 10 | 6 4 . Terrain Rammed . | . . . Walls Destroyed . | . . . Machines Disabled . | . . . Actions | -11 -10 -10 --------- Run | Yrd Mat Sub Total 2883 | 162 2092 629 Wait 1500 | 71 1379 50 Move 1224 | 59 634 531 Hop . | . . . Pick Up 16 | 1 11 4 Fast Attach 9 | 7 . 2 Attach 1 | . 1 . Detach . | . . . Swap 8 | . 5 3 Drop 10 | . 3 7 Fire 49 | 24 25 . Melee 64 | . 32 32 Ram . | . . . Kick . | . . . Crush 2 | . 2 . Escape Stasis . | . . . Rewire . | . . . Trap . | . . . Miscellaneous . | . . . Route ------- -11/Scrapyard -10/Materials (discovered 6 exits: *Mat x3 / [*Min x2] / [*Sub]) -10/Subcaves History --------- Turn | Location | Event 18 | -11/Scrapyard | Discovered new exit (range 16) 244 | -11/Scrapyard | Entered Materials 302 | -10/Materials | Build established: Mutant 498 | -10/Materials | Discovered new exit (range 8) 1086 | -10/Materials | Discovered new exit (range 7) 2245 | -10/Materials | Discovered new exit (range 16) 2363 | -10/Materials | Discovered new exit (range 7) 2596 | -10/Materials | Discovered new exit (range 15) 2613 | -10/Materials | Identified exit to Materials 2663 | -10/Materials | Discovered new exit (range 15) 2808 | -10/Materials | Entered Subcaves 2823 | -10/Subcaves | Shifting Twisted Machinery released Battle Rifle 2823 | -10/Subcaves | Shifting Twisted Machinery released Sub. Machine Gun 2835 | -10/Subcaves | Shifting Twisted Machinery released Flamer 2842 | -10/Subcaves | Shifting Twisted Machinery released Sub. Shrapnel Launcher 3068 | -10/Subcaves | Core integrity fell below 50% 3076 | -10/Subcaves | Core integrity fell below 20% 3157 | -10/Subcaves | Destroyed by S-10 Pest with Light Assault Rifle Last Messages --------------- Sub. Shrapnel Launcher falls loose from the Twisted Machinery. 02852_ Dropped Seismic Detector. 02853_ Acquired Sub. Shrapnel Launcher. 02945_ 1J-3GW(u) tweaks Twisted Machinery. 03065_ Flight Unit destroyed. 03077_ Destroyed Disposable Heat Sink. 03077_ K6-60X(R) system corrupted by crushing effect. 03078_ K6-60X(R) system terminally corrupted. 03078_ Sub. Power Source fried. 03080_ Dropped Propulsion Shielding. 03080_ Acquired 39 matter. 03083_ Dropped Lgt. Assault Rifle. 03084_ Acquired Propulsion Shielding. 03134_ MK-DIS(R): "YOUGO!" 03151_ S-10 Pest destroyed. 03153_ Acquired 12 matter. 03156_ Lgt. Assault Rifle fries itself beyond repair. Map ----- +----------------------------------------------------+ | ??????????????????????????????????????????"#?????? | | ????????????????????????????????????????? #?????? | | ????????????????????????????????????????# #?????? | | ???????????????????????????????????????"" ???????? | | ???????????????????????????????##?##### "????????? | | ???????????????????????????????? "# ?????????? | | ?????????????????????????????????? ##?????????? | | ??????????????????????????????????## "#?????????? | | ????????????????????????????###?###" "###???????? | | ??????????????????????????### ### " ###????## | | ?????????????????????????## ##??## | | ?????????????????????????# #### #### #### | | ?????????????????????????# ## ## ## | | ?????????????????????????# | | ?????????????????????????# | | ?????????????????????????## | | ??????????????????????????## | | ??????????????????????????## | | ?????????????????????????## | | ????????????????????????## ## ### | | ???????????????????????## ## #####?? | | ???????????????????????# ## ### #?????? | | ???????????????????????# #### #?## ???? | | ???????????????????????# #### #??# ?? | | ???????????????????????# * ##?# ? | | ???????????????????????##@ s #??# | | ???????????????????????##= #??# ## | | ???????????????????##### #??# ##??? | | ?????????#??###???## ##??## #???? | | ????????## ## # ??# #????# ???? | | ????????# ### ##????? ???? | | ?????????? # #??????? ???????? | | ???????# # ##????????????????? | | ???????# #####?????????????????? | | ???????# # # ###?????????????????????? | | ???? ????#### #???????????????????????? | | ??? ???????????# #???????????????????????? | | ??????????????????# #???????????????????????? | | ??????????????????# #???????????????????????? | | ??????????????????# #???????????????????????? | | ??????????????????## #??????????????????????? | | ???????????????????## ## #??????????????????????? | | ????????????????????#######??????????????????????? | | ?????????????????????????????????????????????????? | | ?????????????????????????????????????????????????? | | ?????????????????????????????????????????????????? | | ?????????????????????????????????????????????????? | | ?????????????????????????????????????????????????? | | ?????????????????????????????????????????????????? | | ?????????????????????????????????????????????????? | +----------------------------------------------------+ Best States ------------- Heat Dissipation 25 Energy Generation 10 Energy Capacity 125 Matter Stores 300 Matter Capacity 300 Sight Range 16 Robot Scan Range 14 Terrain Scan Density 10 Propulsion Shielding 33 Evasion (%) 62 Recoil Reduction 2 Item Schematics ----------------- None Robot Schematics ------------------ None Fabricated ------------ Nothing Repaired ---------- Nothing Studied --------- None Alien Tech Used ----------------- None Achievements -------------- None Challenges ------------ None Game ------ Seed ZioniteWeightSubcomponent Manual? 0 Play Time 00:12:50 Cumulative 161.1 hours Start 2026.04.30 @ 12:46:13 End 2026.04.30 @ 12:58:49 Sessions 1 Manual Loads 0 Difficulty Rogue Special Mode None Game No. 249 Rogue 249 Adventurer 0 Explorer 0 Win Type - Total 1 Types 1/0/0/0/0/0/0/0/0/0 Lore% 54 Gallery% 56 Achievement% 43 Wizard Run 0 Options --------- Layout 1 ASCII 0 Keyboard 1 Movement Arrows Keybinds 0 Fullscreen 1 Font 24/Smallcaps Map View 50x35 Zoom Use 0% Tactical HUD 1 Map Filters NONE Filters NONE Steam 1 RUN: b5ff343c-3182-4595-9cdb-3c86ff728ffb